fUSD/lending_fUSD_20250111
["ID","MTS","AMOUNT","RATE_DAILY","PERIOD"]
[348548232,1736615443910,-500.0,9.998e-05,2]
[348548234,1736615443920,-500.0,9.998e-05,2]
[348548236,1736615443928,-500.0,9.998e-05,2]
[348548238,1736615443937,-500.0,9.998e-05,2]
[348548239,1736615443946,-500.0,9.998e-05,2]
[348548240,1736615443955,-500.0,9.998e-05,2]
[348548241,1736615443964,-500.0,9.998e-05,2]
[348548242,1736615443973,-500.0,9.998e-05,2]
[348548243,1736615443982,-500.0,9.998e-05,2]
[348548244,1736615443992,-202.56010713,9.998e-05,2]
[348548245,1736615444001,-2024.0,9.998e-05,2]
[348548246,1736615444010,-500.0,9.998e-05,2]
[348548247,1736615444020,-500.0,9.998e-05,2]
[348548248,1736615444029,-500.0,9.998e-05,2]
[348548249,1736615444039,-500.0,9.998e-05,2]
[348548250,1736615444048,-1268.4,9.998e-05,2]
[348548251,1736615444057,-500.0,9.998e-05,2]
[348548252,1736615444066,-500.0,9.998e-05,2]
[348548253,1736615444078,-500.0,9.998e-05,2]
[348548254,1736615444088,-500.0,9.998e-05,2]
[348548255,1736615444097,-500.0,9.998e-05,2]
[348548256,1736615444106,-2138.06,9.998e-05,2]
[348548257,1736615444115,-500.0,9.998e-05,2]
[348548258,1736615444125,-500.0,9.998e-05,2]
[348548259,1736615444134,-396.55624592,9.998e-05,2]
[348548260,1736615444143,-500.0,9.998e-05,2]
[348548261,1736615444154,-500.0,9.998e-05,2]
[348548262,1736615444163,-2848.04,9.998e-05,2]
[348548263,1736615444172,-156.945734,9.998e-05,2]
[348548264,1736615444181,-500.0,9.998e-05,2]
[348548265,1736615444191,-500.0,9.998e-05,2]
[348548266,1736615444200,-500.0,9.998e-05,2]
[348548267,1736615444210,-174.05366,9.998e-05,2]
[348548268,1736615444219,-1292.6,9.998e-05,2]
[348548269,1736615444228,-3694.82,9.998e-05,2]
[348548270,1736615444238,-980.36,9.998e-05,2]
[348548271,1736615444248,-982.89,9.998e-05,2]
[348548272,1736615444258,-1042.21,9.998e-05,2]
[348548273,1736615444268,-1550.34,9.998e-05,2]
[348548274,1736615444278,-500.0,9.998e-05,2]
[348548275,1736615444288,-500.0,9.998e-05,2]
[348548276,1736615444297,-901.99,9.998e-05,2]
[348548277,1736615444306,-790.69,9.998e-05,2]
[348548278,1736615444315,-1073.6,9.998e-05,2]
[348548279,1736615444324,-534.19,9.998e-05,2]
[348548280,1736615444333,-1354.77,9.998e-05,2]
[348548281,1736615444342,-2226.47,9.998e-05,2]
[348548282,1736615444351,-611.57,9.998e-05,2]
[348548283,1736615444361,-2150.86,9.998e-05,2]
[348548284,1736615444371,-1246.69,9.998e-05,2]
[348548285,1736615444380,-1333.1,9.998e-05,2]
[348548286,1736615444389,-500.0,9.999e-05,2]
[348548287,1736615444398,-840.63,9.999e-05,2]
[348548288,1736615444407,-712.89,9.999e-05,2]
[348548289,1736615444417,-500.0,9.999e-05,2]
[348548290,1736615444427,-500.0,9.999e-05,2]
[348548291,1736615444436,-707.23,9.999e-05,2]
[348548292,1736615444446,-500.0,9.999e-05,2]
[348548293,1736615444456,-1839.16,9.999e-05,2]
[348548294,1736615444466,-1323.81,9.999e-05,2]
[348548295,1736615444476,-1323.81,9.999e-05,2]
[348548296,1736615444485,-1918.41,9.999e-05,2]
[348548297,1736615444495,-500.0,9.999e-05,2]
[348548298,1736615444504,-948.11,9.999e-05,2]
[348548299,1736615444513,-8942.44,9.999e-05,2]
[348548300,1736615444523,-500.0,9.999e-05,2]
[348548301,1736615444532,-500.0,9.999e-05,2]
[348548302,1736615444541,-1498.61,9.999e-05,2]
[348548303,1736615444551,-696.6,9.999e-05,2]
[348548304,1736615444560,-500.0,9.999e-05,2]
[348548305,1736615444570,-1794.73,9.999e-05,2]
[348548306,1736615444579,-3605.71,9.999e-05,2]
[348548307,1736615444589,-167614.88410202,0.0001,2]
[348548308,1736615444764,-500.0,9.996e-05,2]
[348548309,1736615444774,-500.0,9.996e-05,2]
[348548310,1736615444785,-86.00001,0.0001,2]
[348548311,1736615444796,-15375.90460138,0.0001,2]
[348548312,1736615444825,-644.82818535,0.0001,2]
[348548313,1736615444837,-6905.45253584,0.0001,2]
[348548314,1736615444850,-2197.83539945,0.0001,2]
[348548315,1736615444862,-4128.63986883,0.0001,2]
[348548316,1736615444872,-3933.36463944,0.0001,2]
[348548317,1736615444885,-2288.91045091,0.0001,2]
[348548318,1736615444898,-438.37999999,0.0001,2]
[348548319,1736615444909,-563.992002,0.0001,2]
[348548320,1736615444921,-463.95250134,0.0001,2]
[348548321,1736615444947,-5059.3755369,0.0001,2]
[348548322,1736615444959,-7901.67657273,0.0001,2]
[348548323,1736615444970,-256870.20336438,0.0001,2]
[348548324,1736615444987,-485.365,0.0001,2]
[348548325,1736615444998,-335.17470444,0.0001,2]
[348548326,1736615445009,-294.766356,0.0001,2]
[348548327,1736615445020,-500.0,0.0001,2]
[348548328,1736615445032,-838.670005,0.0001,2]
[348548329,1736615445043,-1042.36436997,0.0001,2]
[348548330,1736615445060,-342.47638671,0.0001,2]
[348548331,1736615445072,-1862.54424,0.0001,2]
[348548332,1736615445474,-500.0,9.996e-05,2]
[348548333,1736615445483,-500.0,9.996e-05,2]
[348548334,1736615445492,-1037.75,9.999e-05,2]
[348548335,1736615445501,-37215.38414991,0.0001,2]
[348548336,1736615445524,-6236.02230075,0.0001,2]
[348548337,1736615445537,-364.73,0.0001,2]
[348548338,1736615445548,-664.717,0.0001,2]
[348548339,1736615445583,-2177.02760022,0.0001,2]
[348548340,1736615445594,-7714.896462,0.0001,2]
[348548341,1736615445605,-383.20020393,0.0001,2]
[348548342,1736615445621,-3658.8,0.0001,2]
[348548343,1736615445632,-20252.04194209,0.0001,2]
[348548344,1736615445643,-24702.30326925,0.0001,2]
[348548345,1736615445654,-345.52999999,0.0001,2]
[348548346,1736615445665,-3991.5541371,0.0001,2]
[348548347,1736615445699,-1263.50578928,0.0001,2]
[348548348,1736615445710,-1872.23069979,0.0001,2]
[348548349,1736615445721,-2516.16206871,0.0001,2]
[348548350,1736615445732,-33188.94314799,0.0001,2]
[348548351,1736615445743,-319.3472,0.0001,2]
[348548352,1736615445754,-4196444.38751644,0.0001,2]
[348548353,1736615445768,-578.58314681,0.0001,2]
[348548354,1736615445779,-468.8786624,0.0001,2]
[348548355,1736615445791,-459.4436244,0.0001,2]
[348548356,1736615445802,-578.349716,0.0001,2]
[348548357,1736615445813,-427.42,0.0001,2]
[348548358,1736615445824,-513.4034575,0.0001,2]
[348548359,1736615445835,-567.93,0.0001,2]
[348548360,1736615445845,-475.5,0.0001,2]
[348548361,1736615445856,-602.72741978,0.0001,2]
[348548362,1736615445867,-954.6,0.0001,2]
[348548363,1736615445877,-764.72434,0.0001,2]
[348548364,1736615445889,-520521.28596023,0.0001,2]
[348548365,1736615445898,-3903.50463219,0.0001,2]
[348548366,1736615445907,-254323.28326457,0.0001,2]
[348548370,1736615446296,-500.0,9.996e-05,2]
[348548371,1736615446306,-500.0,9.996e-05,2]
[348548372,1736615446315,-500.0,9.996e-05,2]
[348548373,1736615446325,-2450.78810474,0.0001,2]
[348548374,1736615446336,-2946.36745992,0.0001,2]
[348548375,1736615446413,-1281.46614566,0.0001,2]
[348548376,1736615446470,-594.07,9.999e-05,2]
[348548377,1736615446479,-4605.81223325,0.0001,2]
[348548378,1736615446490,-740.40033588,0.0001,2]
[348548379,1736615446527,-93742.55350811,0.0001,2]
[348548380,1736615446539,-51114.20135822,0.0001,2]
[348548381,1736615446550,-569.36792962,0.0001,2]
[348548382,1736615446584,-493.34,0.0001,2]
[348548383,1736615446595,-729.12371714,0.0001,2]
[348548384,1736615446645,-556.78398471,0.0001,2]
[348548385,1736615446702,-2692.046137,0.0001,2]
[348548386,1736615446716,-408.24791984,0.0001,2]
[348548387,1736615446728,-385098.58912144,0.0001,2]
[348548388,1736615461942,600.0,8.22e-05,2]
[348548389,1736615498336,1800.0,8.22e-05,2]
[348548390,1736615865542,760.65,8.219e-05,2]
[348548394,1736616279261,800.0,8.22e-05,2]
[348548396,1736616311863,500.0,8.22e-05,2]
[348548397,1736616312328,2200.0,8.22e-05,2]
[348548399,1736616426452,5739.35,5.281e-05,7]
[348548400,1736616426473,10000.0,5.281e-05,7]
[348548401,1736616426495,10000.0,5.281e-05,7]
[348548402,1736616426517,10000.0,5.281e-05,7]
[348548403,1736616426547,146086.312905,5.281e-05,7]
[348548421,1736616631567,-250.0,8.934e-05,2]
[348548423,1736616631578,-250.0,8.985e-05,2]
[348548424,1736616631588,-2820.7,9.103e-05,2]
[348548425,1736616631600,-4615.6,9.103e-05,2]
[348548426,1736616631611,-2301.0,9.103e-05,2]
[348548427,1736616631623,-1274.27197835,9.103e-05,2]
[348548428,1736616631794,-600.0,9.103e-05,2]
[348548429,1736616635449,-9916.95126637,9.103e-05,2]
[348548435,1736616636654,-2371.47675528,9.103e-05,2]
[348548437,1736616636663,-1000.0,9.109e-05,2]
[348548439,1736616636673,-882.7247947,9.109e-05,2]
[348548440,1736616636683,-250.0,9.124e-05,2]
[348548442,1736616636692,-418.63,9.14e-05,2]
[348548443,1736616636701,-510.7,9.171e-05,2]
[348548445,1736616636711,-200.482,9.5e-05,2]
[348548447,1736616636720,-800.0,9.59e-05,2]
[348548448,1736616636729,-1019.78645002,9.59e-05,2]
[348548450,1736616636741,-976.46695796,9.59e-05,2]
[348548452,1736616636752,-203.74659202,9.59e-05,2]
[348548453,1736616636762,-200.0,9.6e-05,3]
[348548455,1736616636771,-500.0,9.7e-05,3]
[348548456,1736616636780,-700.0,9.8e-05,3]
[348548457,1736616636790,-466.26471362,9.895e-05,2]
[348548458,1736616636799,-150.0,9.895e-05,2]
[348548459,1736616636808,-322.3087,9.895e-05,2]
[348548460,1736616636818,-84981.6075,9.896e-05,2]
[348548461,1736616636827,-999.99,9.896e-05,2]
[348548462,1736616636837,-150.99,9.896e-05,2]
[348548463,1736616636847,-4216.75,9.896e-05,2]
[348548464,1736616636856,-150.99,9.896e-05,2]
[348548465,1736616636866,-9999.99,9.896e-05,2]
[348548466,1736616636876,-5000.0,9.896e-05,2]
[348548467,1736616636885,-299.99,9.897e-05,2]
[348548468,1736616636895,-9999.99,9.897e-05,2]
[348548469,1736616636904,-14711.989696,9.9e-05,2]
[348548470,1736616636914,-150.0,9.9e-05,2]
[348548471,1736616636923,-41497.18703771,9.9e-05,2]
[348548472,1736616636933,-1000.0,9.9e-05,3]
[348548473,1736616636943,-150.848698,9.973e-05,2]
[348548474,1736616636952,-150.9089772,9.973e-05,2]
[348548475,1736616636962,-500.0,9.973e-05,2]
[348548476,1736616636972,-204.38423194,9.973e-05,2]
[348548477,1736616636981,-407.69612112,9.973e-05,2]
[348548478,1736616636990,-1053.56,9.994e-05,2]
[348548479,1736616637000,-500.0,9.994e-05,2]
[348548480,1736616637009,-742.9,9.994e-05,2]
[348548481,1736616637019,-2837.7,9.994e-05,2]
[348548482,1736616637028,-4708.62,9.994e-05,2]
[348548483,1736616637037,-2180.59,9.994e-05,2]
[348548484,1736616637046,-500.0,9.994e-05,2]
[348548485,1736616637056,-500.0,9.994e-05,2]
[348548486,1736616637066,-1647.16,9.994e-05,2]
[348548487,1736616637075,-3855.07,9.994e-05,2]
[348548488,1736616637084,-2277.84,9.994e-05,2]
[348548489,1736616637094,-500.0,9.994e-05,2]
[348548490,1736616637104,-500.0,9.994e-05,2]
[348548491,1736616637114,-500.0,9.994e-05,2]
[348548492,1736616637124,-500.0,9.994e-05,2]
[348548493,1736616637133,-500.0,9.994e-05,2]
[348548494,1736616637143,-500.0,9.994e-05,2]
[348548495,1736616637152,-500.0,9.994e-05,2]
[348548496,1736616637161,-502.70990708,9.994e-05,2]
[348548497,1736616637170,-302.03,9.994e-05,2]
[348548498,1736616637180,-1015.94,9.994e-05,2]
[348548499,1736616637191,-500.0,9.994e-05,2]
[348548500,1736616637200,-502.33613823,9.994e-05,2]
[348548501,1736616637209,-531.81238506,9.994e-05,2]
[348548502,1736616637218,-741.68,9.994e-05,2]
[348548503,1736616637227,-500.0,9.994e-05,2]
[348548504,1736616637235,-503.47422812,9.994e-05,2]
[348548505,1736616637244,-500.0,9.994e-05,2]
[348548506,1736616637253,-500.0,9.994e-05,2]
[348548507,1736616637262,-500.0,9.994e-05,2]
[348548508,1736616637271,-500.0,9.994e-05,2]
[348548509,1736616637281,-500.0,9.994e-05,2]
[348548510,1736616637291,-503.8079036,9.994e-05,2]
[348548511,1736616637300,-535.99276018,9.994e-05,2]
[348548512,1736616637310,-500.0,9.995e-05,2]
[348548514,1736616637319,-503.33462853,9.995e-05,2]
[348548515,1736616637329,-500.0,9.995e-05,2]
[348548516,1736616637338,-503.31007717,9.995e-05,2]
[348548517,1736616637348,-632.0,9.995e-05,2]
[348548518,1736616637359,-500.0,9.995e-05,2]
[348548519,1736616637368,-500.0,9.995e-05,2]
[348548520,1736616637377,-500.0,9.995e-05,2]
[348548521,1736616637385,-500.0,9.995e-05,2]
[348548522,1736616637395,-677.95,9.995e-05,2]
[348548524,1736616637404,-500.0,9.995e-05,2]
[348548526,1736616637413,-500.0,9.995e-05,2]
[348548528,1736616637422,-500.0,9.995e-05,2]
[348548530,1736616637431,-500.0,9.995e-05,2]
[348548532,1736616637440,-500.0,9.995e-05,2]
[348548534,1736616637450,-500.0,9.995e-05,2]
[348548536,1736616637459,-500.0,9.995e-05,2]
[348548538,1736616637468,-500.0,9.995e-05,2]
[348548540,1736616637481,-500.0,9.995e-05,2]
[348548542,1736616637490,-500.0,9.995e-05,2]
[348548544,1736616637500,-500.0,9.995e-05,2]
[348548545,1736616637509,-500.0,9.995e-05,2]
[348548546,1736616637518,-500.0,9.995e-05,2]
[348548547,1736616637527,-273.90274811,9.995e-05,2]
[348548548,1736616637536,-500.0,9.995e-05,2]
[348548549,1736616637545,-500.0,9.995e-05,2]
[348548550,1736616637554,-500.0,9.995e-05,2]
[348548551,1736616637564,-500.0,9.995e-05,2]
[348548552,1736616637573,-500.0,9.995e-05,2]
[348548553,1736616637582,-500.0,9.995e-05,2]
[348548554,1736616637591,-500.0,9.995e-05,2]
[348548555,1736616637600,-500.0,9.995e-05,2]
[348548556,1736616637611,-500.0,9.995e-05,2]
[348548557,1736616637621,-500.0,9.995e-05,2]
[348548558,1736616637630,-500.0,9.995e-05,2]
[348548559,1736616637639,-500.0,9.995e-05,2]
[348548560,1736616637649,-241.01696862,9.995e-05,2]
[348548561,1736616637658,-500.0,9.995e-05,2]
[348548562,1736616637667,-508.92,9.995e-05,2]
[348548563,1736616637677,-500.0,9.995e-05,2]
[348548564,1736616637686,-500.0,9.995e-05,2]
[348548565,1736616637695,-500.0,9.995e-05,2]
[348548566,1736616637704,-500.0,9.995e-05,2]
[348548567,1736616637713,-533.16,9.995e-05,2]
[348548568,1736616637722,-500.0,9.995e-05,2]
[348548569,1736616637731,-500.0,9.995e-05,2]
[348548570,1736616637740,-500.0,9.995e-05,2]
[348548571,1736616637750,-500.0,9.995e-05,2]
[348548572,1736616637759,-500.0,9.995e-05,2]
[348548573,1736616637769,-500.0,9.995e-05,2]
[348548574,1736616637778,-500.0,9.995e-05,2]
[348548575,1736616637787,-500.0,9.995e-05,2]
[348548576,1736616637796,-500.0,9.995e-05,2]
[348548577,1736616637805,-500.0,9.995e-05,2]
[348548578,1736616637814,-552.87067596,9.995e-05,2]
[348548579,1736616637823,-500.0,9.995e-05,2]
[348548580,1736616637832,-500.0,9.995e-05,2]
[348548581,1736616637840,-500.0,9.995e-05,2]
[348548582,1736616637849,-500.0,9.995e-05,2]
[348548583,1736616637858,-911.24,9.995e-05,2]
[348548584,1736616637867,-594.22079597,9.995e-05,2]
[348548585,1736616637876,-500.0,9.995e-05,2]
[348548586,1736616637885,-500.0,9.995e-05,2]
[348548587,1736616637894,-500.0,9.995e-05,2]
[348548588,1736616637904,-500.0,9.995e-05,2]
[348548589,1736616637913,-500.0,9.995e-05,2]
[348548590,1736616637922,-447.71181418,9.995e-05,2]
[348548591,1736616637931,-500.0,9.995e-05,2]
[348548592,1736616637940,-512.36,9.995e-05,2]
[348548593,1736616637949,-773.43,9.995e-05,2]
[348548594,1736616637957,-500.0,9.995e-05,2]
[348548595,1736616637966,-929.23,9.995e-05,2]
[348548596,1736616637975,-500.0,9.995e-05,2]
[348548597,1736616637984,-500.0,9.995e-05,2]
[348548598,1736616637994,-500.0,9.995e-05,2]
[348548599,1736616638006,-500.0,9.995e-05,2]
[348548600,1736616638016,-500.0,9.995e-05,2]
[348548601,1736616638025,-2972.44,9.995e-05,2]
[348548602,1736616638034,-500.0,9.995e-05,2]
[348548603,1736616638044,-500.0,9.995e-05,2]
[348548604,1736616638053,-950.06,9.995e-05,2]
[348548605,1736616638062,-500.0,9.995e-05,2]
[348548606,1736616638072,-500.0,9.995e-05,2]
[348548607,1736616638082,-1115.41,9.995e-05,2]
[348548608,1736616638091,-376.82375432,9.995e-05,2]
[348548609,1736616638101,-500.0,9.995e-05,2]
[348548611,1736616638110,-500.0,9.995e-05,2]
[348548612,1736616638119,-500.0,9.995e-05,2]
[348548613,1736616638128,-500.0,9.995e-05,2]
[348548615,1736616638138,-500.0,9.995e-05,2]
[348548617,1736616638147,-776.58,9.995e-05,2]
[348548619,1736616638157,-500.0,9.995e-05,2]
[348548621,1736616638166,-500.0,9.995e-05,2]
[348548624,1736616638175,-500.0,9.995e-05,2]
[348548627,1736616638184,-500.0,9.995e-05,2]
[348548630,1736616638193,-500.0,9.995e-05,2]
[348548633,1736616638202,-500.0,9.995e-05,2]
[348548636,1736616638212,-500.0,9.995e-05,2]
[348548639,1736616638221,-2674.48,9.995e-05,2]
[348548641,1736616638230,-500.0,9.995e-05,2]
[348548643,1736616638239,-500.0,9.995e-05,2]
[348548644,1736616638248,-500.0,9.995e-05,2]
[348548645,1736616638257,-500.0,9.995e-05,2]
[348548646,1736616638266,-500.0,9.995e-05,2]
[348548647,1736616638275,-1386.3,9.995e-05,2]
[348548648,1736616638284,-500.0,9.995e-05,2]
[348548649,1736616638293,-500.0,9.995e-05,2]
[348548651,1736616638302,-500.0,9.995e-05,2]
[348548653,1736616638311,-500.0,9.995e-05,2]
[348548655,1736616638320,-500.0,9.995e-05,2]
[348548657,1736616638329,-1017.91,9.995e-05,2]
[348548658,1736616638340,-500.0,9.995e-05,2]
[348548660,1736616638349,-500.0,9.995e-05,2]
[348548662,1736616638357,-500.0,9.995e-05,2]
[348548664,1736616638366,-500.0,9.995e-05,2]
[348548666,1736616638376,-1866.88,9.995e-05,2]
[348548668,1736616638384,-500.0,9.995e-05,2]
[348548670,1736616638393,-749.762515,9.995e-05,2]
[348548672,1736616638403,-500.0,9.995e-05,2]
[348548674,1736616638411,-813.35,9.995e-05,2]
[348548676,1736616638421,-522.83,9.995e-05,2]
[348548677,1736616638430,-500.0,9.995e-05,2]
[348548678,1736616638439,-2732.1,9.995e-05,2]
[348548679,1736616638448,-806.43964,9.995e-05,2]
[348548680,1736616638457,-1082.26,9.995e-05,2]
[348548681,1736616638466,-181.557728,9.995e-05,2]
[348548682,1736616638480,-929.53,9.995e-05,2]
[348548683,1736616638489,-500.0,9.995e-05,2]
[348548684,1736616638498,-1884.77,9.995e-05,2]
[348548685,1736616638507,-500.0,9.995e-05,2]
[348548686,1736616638517,-500.0,9.995e-05,2]
[348548687,1736616638526,-6414.96,9.995e-05,2]
[348548688,1736616638535,-1868.18,9.995e-05,2]
[348548689,1736616638544,-500.0,9.995e-05,2]
[348548690,1736616638556,-500.0,9.995e-05,2]
[348548691,1736616638566,-500.0,9.995e-05,2]
[348548692,1736616638575,-500.0,9.995e-05,2]
[348548693,1736616638586,-500.55,9.995e-05,2]
[348548694,1736616638595,-500.0,9.995e-05,2]
[348548695,1736616638605,-500.0,9.995e-05,2]
[348548696,1736616638615,-500.0,9.995e-05,2]
[348548697,1736616638624,-500.0,9.995e-05,2]
[348548698,1736616638633,-841.4,9.995e-05,2]
[348548699,1736616638643,-500.0,9.995e-05,2]
[348548700,1736616638654,-3412.84,9.995e-05,2]
[348548701,1736616638663,-500.0,9.995e-05,2]
[348548702,1736616638672,-500.0,9.995e-05,2]
[348548703,1736616638682,-500.0,9.995e-05,2]
[348548704,1736616638910,-500.0,9.995e-05,2]
[348548705,1736616638921,-500.0,9.995e-05,2]
[348548706,1736616638932,-500.0,9.995e-05,2]
[348548707,1736616638942,-500.0,9.995e-05,2]
[348548708,1736616638952,-500.0,9.995e-05,2]
[348548709,1736616638963,-500.0,9.995e-05,2]
[348548710,1736616638973,-3869.11,9.995e-05,2]
[348548711,1736616638984,-3874.7,9.995e-05,2]
[348548712,1736616638994,-2575.06,9.995e-05,2]
[348548713,1736616639004,-500.0,9.995e-05,2]
[348548714,1736616639014,-1514.93,9.995e-05,2]
[348548715,1736616639024,-1514.93,9.995e-05,2]
[348548716,1736616639034,-500.0,9.995e-05,2]
[348548717,1736616639045,-500.0,9.995e-05,2]
[348548718,1736616639056,-1183.72,9.995e-05,2]
[348548719,1736616639068,-500.0,9.995e-05,2]
[348548720,1736616639078,-500.0,9.995e-05,2]
[348548721,1736616639089,-500.0,9.995e-05,2]
[348548722,1736616639099,-500.0,9.995e-05,2]
[348548723,1736616639108,-565.4,9.995e-05,2]
[348548724,1736616639117,-500.0,9.995e-05,2]
[348548725,1736616639127,-2453.81,9.995e-05,2]
[348548726,1736616639136,-500.0,9.995e-05,2]
[348548727,1736616639146,-500.0,9.995e-05,2]
[348548728,1736616639155,-2505.3,9.995e-05,2]
[348548729,1736616639165,-500.0,9.995e-05,2]
[348548730,1736616639174,-500.0,9.995e-05,2]
[348548731,1736616639185,-1480.72,9.995e-05,2]
[348548732,1736616639195,-4014.82,9.995e-05,2]
[348548733,1736616639205,-4014.82,9.995e-05,2]
[348548734,1736616639217,-1239.09,9.995e-05,2]
[348548735,1736616639226,-500.0,9.995e-05,2]
[348548736,1736616639237,-500.0,9.995e-05,2]
[348548737,1736616639246,-500.0,9.995e-05,2]
[348548738,1736616639255,-500.0,9.995e-05,2]
[348548739,1736616639265,-500.0,9.995e-05,2]
[348548740,1736616639274,-500.0,9.995e-05,2]
[348548741,1736616639286,-500.0,9.995e-05,2]
[348548742,1736616639296,-798.85,9.995e-05,2]
[348548743,1736616639306,-780.83,9.995e-05,2]
[348548744,1736616639316,-500.0,9.995e-05,2]
[348548745,1736616639325,-1073.45,9.995e-05,2]
[348548746,1736616639334,-1276.02,9.995e-05,2]
[348548747,1736616639343,-500.0,9.996e-05,2]
[348548748,1736616639352,-500.0,9.996e-05,2]
[348548749,1736616639362,-500.0,9.996e-05,2]
[348548750,1736616639371,-176.47547056,9.996e-05,2]
[348548751,1736616639380,-301.90332299,9.996e-05,2]
[348548752,1736616639389,-500.0,9.996e-05,2]
[348548753,1736616639399,-211.83412556,9.996e-05,2]
[348548754,1736616639408,-500.0,9.996e-05,2]
[348548755,1736616639417,-500.0,9.996e-05,2]
[348548756,1736616639426,-250.08424952,9.996e-05,2]
[348548757,1736616639435,-500.0,9.996e-05,2]
[348548758,1736616639444,-500.0,9.996e-05,2]
[348548759,1736616639453,-500.0,9.996e-05,2]
[348548760,1736616639463,-500.0,9.996e-05,2]
[348548761,1736616639472,-500.0,9.996e-05,2]
[348548762,1736616639485,-500.0,9.996e-05,2]
[348548763,1736616639494,-500.0,9.996e-05,2]
[348548764,1736616639504,-500.0,9.996e-05,2]
[348548765,1736616639512,-500.0,9.996e-05,2]
[348548766,1736616639522,-500.0,9.996e-05,2]
[348548767,1736616639532,-500.0,9.996e-05,2]
[348548768,1736616639541,-500.0,9.996e-05,2]
[348548769,1736616639550,-500.0,9.996e-05,2]
[348548770,1736616639559,-500.0,9.996e-05,2]
[348548771,1736616639569,-500.0,9.996e-05,2]
[348548772,1736616639578,-500.0,9.996e-05,2]
[348548773,1736616639587,-500.0,9.996e-05,2]
[348548774,1736616639596,-500.0,9.996e-05,2]
[348548775,1736616639608,-500.0,9.996e-05,2]
[348548776,1736616639617,-500.0,9.996e-05,2]
[348548777,1736616639626,-500.0,9.996e-05,2]
[348548778,1736616639635,-500.0,9.996e-05,2]
[348548779,1736616639644,-500.0,9.996e-05,2]
[348548780,1736616639653,-500.0,9.996e-05,2]
[348548781,1736616639662,-500.0,9.996e-05,2]
[348548782,1736616639671,-500.0,9.996e-05,2]
[348548783,1736616639680,-500.0,9.996e-05,2]
[348548784,1736616639690,-500.0,9.996e-05,2]
[348548785,1736616639699,-500.0,9.996e-05,2]
[348548786,1736616639709,-500.0,9.996e-05,2]
[348548787,1736616639718,-500.0,9.996e-05,2]
[348548788,1736616639727,-500.0,9.996e-05,2]
[348548789,1736616639738,-500.0,9.996e-05,2]
[348548790,1736616639747,-500.0,9.996e-05,2]
[348548791,1736616639757,-500.0,9.996e-05,2]
[348548792,1736616639767,-503.61817683,9.996e-05,2]
[348548793,1736616639777,-500.0,9.996e-05,2]
[348548794,1736616639787,-500.0,9.996e-05,2]
[348548795,1736616639796,-500.0,9.996e-05,2]
[348548796,1736616639806,-500.0,9.996e-05,2]
[348548797,1736616639816,-500.0,9.996e-05,2]
[348548798,1736616639825,-500.0,9.996e-05,2]
[348548799,1736616639835,-500.0,9.996e-05,2]
[348548800,1736616639844,-500.0,9.996e-05,2]
[348548801,1736616639853,-500.0,9.996e-05,2]
[348548802,1736616639862,-500.0,9.996e-05,2]
[348548803,1736616639872,-500.0,9.996e-05,2]
[348548804,1736616639881,-500.0,9.996e-05,2]
[348548805,1736616639890,-500.0,9.996e-05,2]
[348548806,1736616639899,-386.51829599,9.996e-05,2]
[348548807,1736616639908,-500.0,9.996e-05,2]
[348548808,1736616639917,-500.0,9.996e-05,2]
[348548809,1736616639926,-500.0,9.996e-05,2]
[348548810,1736616639935,-500.0,9.996e-05,2]
[348548811,1736616639943,-500.0,9.996e-05,2]
[348548812,1736616639952,-500.0,9.996e-05,2]
[348548813,1736616639961,-500.0,9.996e-05,2]
[348548814,1736616639970,-500.0,9.996e-05,2]
[348548815,1736616639979,-500.0,9.996e-05,2]
[348548816,1736616639988,-500.0,9.996e-05,2]
[348548817,1736616639997,-500.0,9.996e-05,2]